[Event "*** Titled Tuesday 3|2 Blitz"]
[Site "Chess.com"]
[Date "2015.07.07"]
[Round "2"]
[White "GeorgMeier"]
[Black "AndreyOstrovskiy"]
[Result "1-0"]
[WhiteElo "2729"]
[BlackElo "2344"]
[TimeControl "180+2"]
[EndTime "11:19:40 PDT"]
[Termination "GeorgMeier won by resignation"]

1. Nf3 {[%clk 0:03:01.9]} 1... Nf6 {[%clk 0:03:00.4]} 2. g3 {[%clk 0:03:03.3]}
2... d5 {[%clk 0:02:58.2]} 3. Bg2 {[%clk 0:03:04.7]} 3... e6 {[%clk 0:02:58.3]}
4. O-O {[%clk 0:03:06.1]} 4... Be7 {[%clk 0:02:53.5]} 5. d4 {[%clk 0:03:07.3]}
5... b6 {[%clk 0:02:51.7]} 6. c4 {[%clk 0:03:07.8]} 6... c6 {[%clk 0:02:46.1]}
7. Nc3 {[%clk 0:03:08.4]} 7... Ba6 {[%clk 0:02:46.1]} 8. Ne5 {[%clk 0:03:06.5]}
8... O-O {[%clk 0:02:46.2]} 9. e4 {[%clk 0:02:41.2]} 9... dxc4 {[%clk
0:02:38.6]} 10. Be3 {[%clk 0:02:40.7]} 10... Nfd7 {[%clk 0:02:35.4]} 11. Nf3
{[%clk 0:02:41.1]} 11... b5 {[%clk 0:02:31.8]} 12. Qc2 {[%clk 0:02:37.2]} 12...
Nb6 {[%clk 0:02:31]} 13. Rad1 {[%clk 0:02:37.7]} 13... N8d7 {[%clk 0:02:31.4]}
14. h4 {[%clk 0:02:35.3]} 14... Rc8 {[%clk 0:02:31]} 15. Rfe1 {[%clk 0:02:35.7]}
15... h6 {[%clk 0:02:24.4]} 16. Qc1 {[%clk 0:02:35.3]} 16... b4 {[%clk
0:02:23.6]} 17. Ne2 {[%clk 0:02:34.4]} 17... Nf6 {[%clk 0:02:21.9]} 18. Ne5
{[%clk 0:02:33.2]} 18... Nfd7 {[%clk 0:02:06.7]} 19. Ng4 {[%clk 0:02:27.5]}
19... h5 {[%clk 0:02:03.2]} 20. Nh2 {[%clk 0:02:26.4]} 20... Nf6 {[%clk
0:01:59.5]} 21. Nf4 {[%clk 0:02:24.8]} 21... Na4 {[%clk 0:01:53.2]} 22. Qc2
{[%clk 0:02:24.3]} 22... Qa5 {[%clk 0:01:40]} 23. Nf3 {[%clk 0:02:15.8]} 23...
c3 {[%clk 0:01:36.7]} 24. Ng5 {[%clk 0:02:12.3]} 24... Ng4 {[%clk 0:01:21.3]}
25. e5 {[%clk 0:02:13]} 25... Bxg5 {[%clk 0:01:22]} 26. hxg5 {[%clk 0:02:13.6]}
26... Nxb2 {[%clk 0:01:17.2]} 27. Ra1 {[%clk 0:02:06.6]} 27... Rfd8 {[%clk
0:01:05.2]} 28. g6 {[%clk 0:02:04.6]} 28... Qc7 {[%clk 0:01:04.3]} 29. Be4
{[%clk 0:01:58.5]} 29... f5 {[%clk 0:00:50.3]} 30. Nxe6 {[%clk 0:01:58.2]} 30...
Qe7 {[%clk 0:00:48.8]} 31. Bxf5 {[%clk 0:01:58.7]} 31... Nxe3 {[%clk 0:00:49]}
32. Rxe3 {[%clk 0:01:47.8]} 32... Nc4 {[%clk 0:00:49.4]} 33. Rf3 {[%clk
0:01:47.6]} 33... Rd5 {[%clk 0:00:41.3]} 34. Bh3 {[%clk 0:01:45.1]} 34... Nd2
{[%clk 0:00:42.1]} 35. Rf7 {[%clk 0:01:45.4]} 35... Qe8 {[%clk 0:00:38.7]} 36.
Rxg7+ {[%clk 0:01:45.6]} 36... Kh8 {[%clk 0:00:39.5]} 37. Rh7+ {[%clk 0:01:46]}
37... Kg8 {[%clk 0:00:40.6]} 38. Qf5 {[%clk 0:01:44.5]} 38... Be2 {[%clk
0:00:35.8]} 39. Qf6 {[%clk 0:01:44.7]} 1-0

[Event "*** Titled Tuesday 3|2 Blitz"]
[Site "Chess.com"]
[Date "2015.07.07"]
[Round "2"]
[White "Tirantes"]
[Black "alturas_pacificas"]
[Result "1-0"]
[WhiteElo "2250"]
[BlackElo "2046"]
[TimeControl "180+2"]
[EndTime "11:20:23 PDT"]
[Termination "Tirantes won by checkmate"]

1. c4 {[%clk 0:03:01.9]} 1... c6 {[%clk 0:03:00.6]} 2. Nf3 {[%clk 0:03:00.2]}
2... d5 {[%clk 0:03:01.4]} 3. g3 {[%clk 0:03:00.4]} 3... Nf6 {[%clk 0:03:02.3]}
4. Bg2 {[%clk 0:03:00.8]} 4... Bf5 {[%clk 0:03:02.7]} 5. b3 {[%clk 0:02:59.5]}
5... e6 {[%clk 0:03:03.8]} 6. Bb2 {[%clk 0:02:59.6]} 6... h6 {[%clk 0:03:04.1]}
7. O-O {[%clk 0:03:00.1]} 7... Be7 {[%clk 0:02:55.1]} 8. d3 {[%clk 0:03:00.3]}
8... O-O {[%clk 0:02:55.4]} 9. Nbd2 {[%clk 0:03:00.7]} 9... a5 {[%clk
0:02:54.8]} 10. Re1 {[%clk 0:03:00.1]} 10... Bh7 {[%clk 0:02:53.1]} 11. e4
{[%clk 0:02:56.5]} 11... dxe4 {[%clk 0:02:54.1]} 12. Nxe4 {[%clk 0:02:52.7]}
12... Na6 {[%clk 0:02:52.3]} 13. Qe2 {[%clk 0:02:48]} 13... Nb4 {[%clk
0:02:43.7]} 14. Rad1 {[%clk 0:02:30.1]} 14... Na6 {[%clk 0:02:12.4]} 15. Ne5
{[%clk 0:02:27.3]} 15... Nc5 {[%clk 0:02:04.7]} 16. Nxc5 {[%clk 0:02:21.2]}
16... Bxc5 {[%clk 0:02:06.6]} 17. d4 {[%clk 0:02:16.2]} 17... Be7 {[%clk
0:02:06.8]} 18. h4 {[%clk 0:02:07.2]} 18... Qc7 {[%clk 0:02:04.1]} 19. g4 {[%clk
0:01:58.3]} 19... Nd7 {[%clk 0:01:57.7]} 20. Nxd7 {[%clk 0:01:48.9]} 20... Qxd7
{[%clk 0:01:56.8]} 21. d5 {[%clk 0:01:47.1]} 21... cxd5 {[%clk 0:01:32.6]} 22.
cxd5 {[%clk 0:01:47.3]} 22... Bxh4 {[%clk 0:01:34.2]} 23. dxe6 {[%clk
0:01:40.4]} 23... Qxe6 {[%clk 0:01:34.6]} 24. Bxb7 {[%clk 0:01:21.3]} 24... Rab8
{[%clk 0:01:18.5]} 25. Bd5 {[%clk 0:01:15]} 25... Qxe2 {[%clk 0:01:07.9]} 26.
Rxe2 {[%clk 0:01:14.9]} 26... Bg6 {[%clk 0:01:04]} 27. Kg2 {[%clk 0:01:14.4]}
27... h5 {[%clk 0:01:03.5]} 28. Rh1 {[%clk 0:01:09]} 28... Rbd8 {[%clk
0:00:22.4]} 29. Bc4 {[%clk 0:01:08.4]} 29... Bf6 {[%clk 0:00:12.3]} 30. gxh5
{[%clk 0:01:07.4]} 30... Bxb2 {[%clk 0:00:12.5]} 31. hxg6 {[%clk 0:01:06.4]}
31... Bf6 {[%clk 0:00:11.3]} 32. Re3 {[%clk 0:01:01.7]} 32... Rfe8 {[%clk
0:00:08.7]} 33. gxf7+ {[%clk 0:00:57.2]} 33... Kf8 {[%clk 0:00:09.5]} 34. Rh8#
{[%clk 0:00:57.4]} 1-0

[Event "*** Titled Tuesday 3|2 Blitz"]
[Site "Chess.com"]
[Date "2015.07.07"]
[Round "2"]
[White "gumersindo"]
[Black "PauloCesarCosta"]
[Result "0-1"]
[WhiteElo "2015"]
[BlackElo "2018"]
[TimeControl "180+2"]
[EndTime "11:20:34 PDT"]
[Termination "PauloCesarCosta won by resignation"]

1. d4 {[%clk 0:03:01.9]} 1... d5 {[%clk 0:03:00.4]} 2. c4 {[%clk 0:03:03.1]}
2... c6 {[%clk 0:03:01.9]} 3. Nf3 {[%clk 0:03:03.2]} 3... e6 {[%clk 0:03:02.8]}
4. e3 {[%clk 0:03:02.7]} 4... Nd7 {[%clk 0:03:01.5]} 5. Nc3 {[%clk 0:03:04.2]}
5... f5 {[%clk 0:02:59.7]} 6. g3 {[%clk 0:03:03.8]} 6... Ngf6 {[%clk 0:03:00.4]}
7. Bg2 {[%clk 0:03:02.1]} 7... Bd6 {[%clk 0:02:56.1]} 8. Qd3 {[%clk 0:02:59.8]}
8... Ne4 {[%clk 0:02:53.3]} 9. O-O {[%clk 0:02:51.6]} 9... O-O {[%clk
0:02:53.5]} 10. Rb1 {[%clk 0:02:46]} 10... Ndf6 {[%clk 0:02:49.3]} 11. b4 {[%clk
0:02:46.2]} 11... Nxc3 {[%clk 0:02:48.3]} 12. Qxc3 {[%clk 0:02:44.5]} 12... Ne4
{[%clk 0:02:48.7]} 13. Qd3 {[%clk 0:02:45.1]} 13... a6 {[%clk 0:02:43.4]} 14. a4
{[%clk 0:02:42.2]} 14... Bd7 {[%clk 0:02:42.1]} 15. b5 {[%clk 0:02:32]} 15...
axb5 {[%clk 0:02:42]} 16. axb5 {[%clk 0:02:31.2]} 16... dxc4 {[%clk 0:02:19.9]}
17. Qxc4 {[%clk 0:02:31.2]} 17... cxb5 {[%clk 0:02:20.2]} 18. Qd3 {[%clk
0:02:24.1]} 18... Bc6 {[%clk 0:02:18.8]} 19. Qb3 {[%clk 0:01:45]} 19... Qe7
{[%clk 0:01:54]} 20. Ne1 {[%clk 0:01:26.3]} 20... Kh8 {[%clk 0:01:43]} 21. Nd3
{[%clk 0:01:26.6]} 21... h6 {[%clk 0:01:35.1]} 22. f3 {[%clk 0:01:17.3]} 22...
Nf6 {[%clk 0:01:30.2]} 23. Bd2 {[%clk 0:01:17.5]} 23... Ra3 {[%clk 0:01:23.4]}
24. Qc2 {[%clk 0:01:15.5]} 24... Rfa8 {[%clk 0:01:21.3]} 25. Nb4 {[%clk
0:01:13.3]} 25... Qd7 {[%clk 0:01:05.9]} 26. Rfc1 {[%clk 0:00:45.1]} 26... Bxb4
{[%clk 0:00:51.5]} 27. Bxb4 {[%clk 0:00:43.8]} 27... Ra2 {[%clk 0:00:53]} 28.
Qd3 {[%clk 0:00:39.1]} 28... Nd5 {[%clk 0:00:50.7]} 29. Bd2 {[%clk 0:00:28.8]}
29... R8a3 {[%clk 0:00:48.8]} 30. Qe2 {[%clk 0:00:25.3]} 30... Nc3 {[%clk
0:00:38.4]} 31. Rxc3 {[%clk 0:00:24.1]} 31... Rxc3 {[%clk 0:00:39]} 32. Qe1
{[%clk 0:00:18.1]} 32... Rcc2 {[%clk 0:00:37]} 0-1

[Event "*** Titled Tuesday 3|2 Blitz"]
[Site "Chess.com"]
[Date "2015.07.07"]
[Round "2"]
[White "Dr-Bassem"]
[Black "stepanosinovsky"]
[Result "1-0"]
[WhiteElo "2477"]
[BlackElo "2299"]
[TimeControl "180+2"]
[EndTime "11:20:48 PDT"]
[Termination "Dr-Bassem won by resignation"]

1. e4 {[%clk 0:02:59.6]} 1... b6 {[%clk 0:02:57.8]} 2. d4 {[%clk 0:02:59.7]}
2... Bb7 {[%clk 0:02:52.5]} 3. Bd3 {[%clk 0:03:01.1]} 3... e6 {[%clk 0:02:53.5]}
4. Nf3 {[%clk 0:03:02.1]} 4... Ne7 {[%clk 0:02:51]} 5. O-O {[%clk 0:03:02.2]}
5... d5 {[%clk 0:02:37.5]} 6. e5 {[%clk 0:03:02.7]} 6... Nbc6 {[%clk 0:02:30.7]}
7. c3 {[%clk 0:03:02.9]} 7... Qd7 {[%clk 0:02:31.3]} 8. Re1 {[%clk 0:02:55.5]}
8... O-O-O {[%clk 0:02:29.4]} 9. b4 {[%clk 0:02:54.7]} 9... Kb8 {[%clk 0:02:29]}
10. a4 {[%clk 0:02:51.6]} 10... f6 {[%clk 0:02:27.9]} 11. a5 {[%clk 0:02:19.2]}
11... Ng6 {[%clk 0:01:55.6]} 12. axb6 {[%clk 0:02:13.8]} 12... axb6 {[%clk
0:01:49.8]} 13. Qa4 {[%clk 0:02:05.5]} 13... fxe5 {[%clk 0:01:41.3]} 14. Nxe5
{[%clk 0:01:38.6]} 14... Ngxe5 {[%clk 0:01:40.7]} 15. dxe5 {[%clk 0:01:39.1]}
15... d4 {[%clk 0:00:46.6]} 16. Bg5 {[%clk 0:01:37.6]} 16... dxc3 {[%clk
0:00:40.6]} 17. Bb5 {[%clk 0:01:31.3]} 17... c2 {[%clk 0:00:21]} 18. Na3 {[%clk
0:01:31.3]} 18... Qd5 {[%clk 0:00:19.7]} 19. Bxd8 {[%clk 0:01:13.3]} 19... Nd4
{[%clk 0:00:19.9]} 20. Bxc7+ {[%clk 0:00:48.1]} 20... Kxc7 {[%clk 0:00:20.6]}
21. Bf1 {[%clk 0:00:45.3]} 21... Nf3+ {[%clk 0:00:18.8]} 22. Kh1 {[%clk
0:00:39.4]} 22... Nxe1 {[%clk 0:00:13.4]} 23. Rxe1 {[%clk 0:00:41.3]} 23... Be7
{[%clk 0:00:13.1]} 24. Nb5+ {[%clk 0:00:39.7]} 24... Kb8 {[%clk 0:00:11.9]} 25.
Qa7+ {[%clk 0:00:36.8]} 25... Kc8 {[%clk 0:00:13.2]} 26. Qxb6 {[%clk 0:00:37.3]}
26... Qc6 {[%clk 0:00:11.2]} 27. Na7+ {[%clk 0:00:38]} 27... Kd7 {[%clk
0:00:10.4]} 28. Nxc6 {[%clk 0:00:38.3]} 28... Bxc6 {[%clk 0:00:12.3]} 29. Qd4+
{[%clk 0:00:32.8]} 29... Bd5 {[%clk 0:00:12.9]} 30. Bc4 {[%clk 0:00:31.5]} 30...
Rc8 {[%clk 0:00:13.3]} 31. Bxd5 {[%clk 0:00:30.9]} 31... c1=Q {[%clk 0:00:14.7]}
32. Bc4+ {[%clk 0:00:30.7]} 32... Ke8 {[%clk 0:00:10.2]} 33. Rxc1 {[%clk
0:00:30.6]} 1-0

[Event "*** Titled Tuesday 3|2 Blitz"]
[Site "Chess.com"]
[Date "2015.07.07"]
[Round "2"]
[White "MinhGTrAn"]
[Black "viditchess"]
[Result "1/2-1/2"]
[WhiteElo "2573"]
[BlackElo "2391"]
[TimeControl "180+2"]
[EndTime "11:20:56 PDT"]
[Termination "Game drawn by repetition"]

1. d4 {[%clk 0:03:01.9]} 1... Nf6 {[%clk 0:03:00.7]} 2. Bg5 {[%clk 0:02:59.3]}
2... e6 {[%clk 0:03:00.8]} 3. e3 {[%clk 0:02:58.9]} 3... c5 {[%clk 0:03:00.6]}
4. c3 {[%clk 0:02:59.6]} 4... b6 {[%clk 0:03:00.4]} 5. Nf3 {[%clk 0:02:56.2]}
5... Bb7 {[%clk 0:03:01.4]} 6. Bd3 {[%clk 0:02:57.3]} 6... Be7 {[%clk
0:03:02.6]} 7. Nbd2 {[%clk 0:02:58.9]} 7... O-O {[%clk 0:03:03.4]} 8. O-O {[%clk
0:03:00.5]} 8... h6 {[%clk 0:03:01.5]} 9. Bh4 {[%clk 0:03:01.4]} 9... Nc6 {[%clk
0:02:55.3]} 10. a3 {[%clk 0:03:00.5]} 10... cxd4 {[%clk 0:02:40.1]} 11. cxd4
{[%clk 0:03:00.1]} 11... Nh5 {[%clk 0:02:27.4]} 12. Bxe7 {[%clk 0:03:00.2]}
12... Qxe7 {[%clk 0:02:25.6]} 13. Rc1 {[%clk 0:03:02.1]} 13... Rfc8 {[%clk
0:02:25.8]} 14. Qe2 {[%clk 0:02:58.3]} 14... Nf6 {[%clk 0:02:19.2]} 15. Ba6
{[%clk 0:02:47.6]} 15... d6 {[%clk 0:02:10.9]} 16. Rc2 {[%clk 0:02:41.7]} 16...
Bxa6 {[%clk 0:01:36.2]} 17. Qxa6 {[%clk 0:02:43.6]} 17... Rc7 {[%clk 0:01:37.8]}
18. Rfc1 {[%clk 0:02:43]} 18... Rac8 {[%clk 0:01:39.4]} 19. h3 {[%clk
0:02:33.4]} 19... Nd7 {[%clk 0:01:35.8]} 20. Qd3 {[%clk 0:02:09.9]} 20... d5
{[%clk 0:01:33.6]} 21. b4 {[%clk 0:02:05.2]} 21... Qd6 {[%clk 0:01:29.6]} 22.
Ne1 {[%clk 0:02:01.9]} 22... Ne7 {[%clk 0:01:25.6]} 23. Nb1 {[%clk 0:01:40.8]}
23... Rxc2 {[%clk 0:01:24.2]} 24. Rxc2 {[%clk 0:01:41.6]} 24... Rxc2 {[%clk
0:01:25]} 25. Nxc2 {[%clk 0:01:42.5]} 25... Qc6 {[%clk 0:01:23.8]} 26. b5 {[%clk
0:01:36.8]} 26... Qc7 {[%clk 0:01:23.2]} 27. Qc3 {[%clk 0:01:23.1]} 27... Qxc3
{[%clk 0:01:10.9]} 28. Nxc3 {[%clk 0:01:25]} 28... Kf8 {[%clk 0:01:11.5]} 29.
Kf1 {[%clk 0:01:24.5]} 29... Ke8 {[%clk 0:01:10.7]} 30. Ke2 {[%clk 0:01:26.1]}
30... Kd8 {[%clk 0:01:12.1]} 31. f3 {[%clk 0:01:19.2]} 31... Kc7 {[%clk
0:01:07]} 32. e4 {[%clk 0:01:20.5]} 32... dxe4 {[%clk 0:01:05]} 33. fxe4 {[%clk
0:01:22.4]} 33... f5 {[%clk 0:01:03.2]} 34. Kd3 {[%clk 0:01:16.2]} 34... Nf6
{[%clk 0:01:01.5]} 35. Nb4 {[%clk 0:01:11.9]} 35... fxe4+ {[%clk 0:00:59.1]} 36.
Nxe4 {[%clk 0:01:13.8]} 36... Nfd5 {[%clk 0:00:57.8]} 37. Na6+ {[%clk
0:00:50.5]} 37... Kd7 {[%clk 0:00:57.6]} 38. g3 {[%clk 0:00:52.4]} 38... Nc7
{[%clk 0:00:54.3]} 39. Nxc7 {[%clk 0:00:40.8]} 39... Kxc7 {[%clk 0:00:56.2]} 40.
Nc3 {[%clk 0:00:40.6]} 40... Nf5 {[%clk 0:00:56.2]} 41. g4 {[%clk 0:00:37.2]}
41... Nd6 {[%clk 0:00:57.3]} 42. a4 {[%clk 0:00:36.3]} 42... Kd7 {[%clk
0:00:58.6]} 43. Ke3 {[%clk 0:00:36]} 43... Nc4+ {[%clk 0:00:58.5]} 44. Ke4
{[%clk 0:00:34.4]} 44... Kd6 {[%clk 0:00:59.1]} 45. Kd3 {[%clk 0:00:32.6]} 45...
Nb2+ {[%clk 0:01:00.2]} 46. Kc2 {[%clk 0:00:33.6]} 46... Nc4 {[%clk 0:01:01.4]}
47. Kd3 {[%clk 0:00:35.3]} 47... Nb2+ {[%clk 0:01:02.5]} 48. Kc2 {[%clk
0:00:36.7]} 48... Nc4 {[%clk 0:01:03.6]} 49. Kd3 {[%clk 0:00:38.2]} 1/2-1/2

[Event "*** Titled Tuesday 3|2 Blitz"]
[Site "Chess.com"]
[Date "2015.07.07"]
[Round "2"]
[White "kesarev"]
[Black "Penguininja"]
[Result "0-1"]
[WhiteElo "2192"]
[BlackElo "2108"]
[TimeControl "180+2"]
[EndTime "11:21:02 PDT"]
[Termination "Penguininja won by resignation"]

1. Nf3 {[%clk 0:03:01.9]} 1... d5 {[%clk 0:02:58]} 2. c4 {[%clk 0:03:02.9]} 2...
c6 {[%clk 0:02:59.3]} 3. b3 {[%clk 0:03:03.1]} 3... e6 {[%clk 0:03:00]} 4. Bb2
{[%clk 0:03:03.1]} 4... Nf6 {[%clk 0:03:01.2]} 5. e3 {[%clk 0:03:03.9]} 5...
Nbd7 {[%clk 0:03:02.3]} 6. Qc2 {[%clk 0:03:04.6]} 6... Be7 {[%clk 0:03:02.9]} 7.
g4 {[%clk 0:03:05]} 7... O-O {[%clk 0:03:00.8]} 8. g5 {[%clk 0:03:05.5]} 8...
Ne4 {[%clk 0:02:56.4]} 9. h4 {[%clk 0:02:46.3]} 9... f6 {[%clk 0:02:40.1]} 10.
Bd3 {[%clk 0:02:37]} 10... Ndc5 {[%clk 0:02:30.2]} 11. Be2 {[%clk 0:02:19.4]}
11... Nd7 {[%clk 0:01:46.1]} 12. Nc3 {[%clk 0:01:44.8]} 12... Nxc3 {[%clk
0:01:37.2]} 13. Qxc3 {[%clk 0:01:43.1]} 13... a5 {[%clk 0:01:30.2]} 14. Rg1
{[%clk 0:01:26.5]} 14... Nc5 {[%clk 0:01:16.4]} 15. gxf6 {[%clk 0:00:38]} 15...
Bxf6 {[%clk 0:01:18.3]} 16. Rxg7+ {[%clk 0:00:38.8]} 16... Kxg7 {[%clk 0:01:13]}
17. Qc2 {[%clk 0:00:31.9]} 17... Bxb2 {[%clk 0:01:07.3]} 18. Qxb2+ {[%clk
0:00:32.7]} 18... Qf6 {[%clk 0:01:07.9]} 19. d4 {[%clk 0:00:33.2]} 19... Nd3+
{[%clk 0:00:48.3]} 20. Bxd3 {[%clk 0:00:30.4]} 20... Qxf3 {[%clk 0:00:49.3]} 21.
Be2 {[%clk 0:00:29]} 21... Qxf2+ {[%clk 0:00:46.6]} 22. Kd2 {[%clk 0:00:30.6]}
22... Bd7 {[%clk 0:00:28.5]} 23. Qa3 {[%clk 0:00:30]} 23... Rae8 {[%clk
0:00:16.8]} 24. Qd6 {[%clk 0:00:25.9]} 24... Qf7 {[%clk 0:00:13.3]} 25. Rf1
{[%clk 0:00:20.9]} 25... Qe7 {[%clk 0:00:08.4]} 26. Qe5+ {[%clk 0:00:21.1]}
26... Rf6 {[%clk 0:00:09.1]} 27. Bh5 {[%clk 0:00:21.2]} 27... Rf8 {[%clk
0:00:09.6]} 28. cxd5 {[%clk 0:00:20.7]} 28... cxd5 {[%clk 0:00:10]} 29. Kc2
{[%clk 0:00:21]} 29... Bb5 {[%clk 0:00:09.6]} 30. Rf4 {[%clk 0:00:21.3]} 30...
Rc8+ {[%clk 0:00:09.6]} 31. Kb2 {[%clk 0:00:22.3]} 31... Rf8 {[%clk 0:00:10.9]}
32. Rf3 {[%clk 0:00:22.8]} 32... Kg8 {[%clk 0:00:12.3]} 33. Rf4 {[%clk
0:00:23.8]} 33... Rxf4 {[%clk 0:00:13.5]} 34. exf4 {[%clk 0:00:22.9]} 34... Qf6
{[%clk 0:00:14.9]} 35. Qe3 {[%clk 0:00:22]} 35... Qxf4 {[%clk 0:00:15.5]} 36.
Qxe6+ {[%clk 0:00:22.9]} 36... Kh8 {[%clk 0:00:16.2]} 0-1

[Event "*** Titled Tuesday 3|2 Blitz"]
[Site "Chess.com"]
[Date "2015.07.07"]
[Round "2"]
[White "AlexCn1"]
[Black "1random"]
[Result "1-0"]
[WhiteElo "2045"]
[BlackElo "1986"]
[TimeControl "180+2"]
[EndTime "11:21:52 PDT"]
[Termination "AlexCn1 won by checkmate"]

1. d4 {[%clk 0:03:01.9]} 1... Nf6 {[%clk 0:02:41.2]} 2. c4 {[%clk 0:03:01]} 2...
e6 {[%clk 0:02:37.2]} 3. Nf3 {[%clk 0:03:00.8]} 3... d5 {[%clk 0:02:38]} 4. g3
{[%clk 0:03:01.6]} 4... Be7 {[%clk 0:02:38.6]} 5. Bg2 {[%clk 0:03:01.7]} 5...
O-O {[%clk 0:02:40.2]} 6. Qc2 {[%clk 0:03:02.6]} 6... Nc6 {[%clk 0:02:38.6]} 7.
O-O {[%clk 0:03:02.9]} 7... dxc4 {[%clk 0:02:39.4]} 8. Qxc4 {[%clk 0:03:03.4]}
8... Qd5 {[%clk 0:02:36.7]} 9. Qd3 {[%clk 0:03:03.8]} 9... Qe4 {[%clk
0:02:36.2]} 10. Qd1 {[%clk 0:03:01.4]} 10... Rd8 {[%clk 0:02:29.6]} 11. Nc3
{[%clk 0:03:02]} 11... Qf5 {[%clk 0:02:20.9]} 12. e3 {[%clk 0:02:49.5]} 12...
Bd7 {[%clk 0:02:12.9]} 13. Qe2 {[%clk 0:02:45.1]} 13... Be8 {[%clk 0:02:13.4]}
14. e4 {[%clk 0:02:45.2]} 14... Qa5 {[%clk 0:02:14.2]} 15. Be3 {[%clk
0:02:44.6]} 15... Bb4 {[%clk 0:02:02.4]} 16. e5 {[%clk 0:02:45.4]} 16... Bxc3
{[%clk 0:01:53.7]} 17. bxc3 {[%clk 0:02:44]} 17... Nd5 {[%clk 0:01:54.9]} 18.
Bd2 {[%clk 0:02:45.1]} 18... Qa3 {[%clk 0:01:40.4]} 19. Ng5 {[%clk 0:02:40.1]}
19... Nce7 {[%clk 0:01:36.1]} 20. c4 {[%clk 0:02:34.4]} 20... Nb6 {[%clk
0:01:16.7]} 21. Bxb7 {[%clk 0:02:34.9]} 21... Rab8 {[%clk 0:01:17.3]} 22. Be4
{[%clk 0:02:36]} 22... Nf5 {[%clk 0:01:03.6]} 23. Bxf5 {[%clk 0:02:20.2]} 23...
exf5 {[%clk 0:01:04.4]} 24. d5 {[%clk 0:02:12.3]} 24... h6 {[%clk 0:00:52.5]}
25. Nf3 {[%clk 0:02:13.1]} 25... Nxc4 {[%clk 0:00:53.7]} 26. Qxc4 {[%clk
0:02:06.5]} 26... Qxf3 {[%clk 0:00:38.7]} 27. Qxc7 {[%clk 0:01:53.4]} 27... Qxd5
{[%clk 0:00:36.6]} 28. Bf4 {[%clk 0:01:35.4]} 28... Rbc8 {[%clk 0:00:26.3]} 29.
Qxa7 {[%clk 0:01:34.4]} 29... Bc6 {[%clk 0:00:21.1]} 30. f3 {[%clk 0:01:35.6]}
30... Ra8 {[%clk 0:00:22]} 31. Qe3 {[%clk 0:01:33.1]} 31... Rxa2 {[%clk
0:00:22.1]} 32. Rxa2 {[%clk 0:01:33.4]} 32... Qxa2 {[%clk 0:00:24]} 33. Rf2
{[%clk 0:01:30.3]} 33... Qe6 {[%clk 0:00:21.2]} 34. h4 {[%clk 0:01:29.6]} 34...
h5 {[%clk 0:00:21.5]} 35. Kg2 {[%clk 0:01:24.5]} 35... g6 {[%clk 0:00:22.5]} 36.
Rd2 {[%clk 0:01:24.6]} 36... Rxd2+ {[%clk 0:00:23.3]} 37. Qxd2 {[%clk
0:01:25.7]} 37... Qd5 {[%clk 0:00:25]} 38. Qe2 {[%clk 0:01:24.3]} 38... Kf8
{[%clk 0:00:25.2]} 39. Kf2 {[%clk 0:01:23]} 39... Qd4+ {[%clk 0:00:22.2]} 40.
Be3 {[%clk 0:01:23.4]} 40... Qd5 {[%clk 0:00:18.5]} 41. Qd2 {[%clk 0:01:17.6]}
41... Qxf3+ {[%clk 0:00:18.6]} 42. Ke1 {[%clk 0:01:17.9]} 42... Qxg3+ {[%clk
0:00:15.4]} 43. Kd1 {[%clk 0:01:16.6]} 43... Ba4+ {[%clk 0:00:11.6]} 44. Kc1
{[%clk 0:01:17.4]} 44... Qxe5 {[%clk 0:00:07]} 45. Qd8+ {[%clk 0:01:16.6]} 45...
Qe8 {[%clk 0:00:07.6]} 46. Qd6+ {[%clk 0:01:16.2]} 46... Kg8 {[%clk 0:00:05.9]}
47. Qd4 {[%clk 0:01:17.3]} 47... Qc6+ {[%clk 0:00:06.3]} 48. Kd2 {[%clk
0:01:18.4]} 48... Qc2+ {[%clk 0:00:07.3]} 49. Ke1 {[%clk 0:01:19.7]} 49... Qb1+
{[%clk 0:00:08.7]} 50. Kf2 {[%clk 0:01:20.9]} 50... Qa2+ {[%clk 0:00:09.4]} 51.
Kg3 {[%clk 0:01:21.7]} 51... Bc2 {[%clk 0:00:09.7]} 52. Bh6 {[%clk 0:01:18.7]}
52... f6 {[%clk 0:00:08]} 53. Qxf6 {[%clk 0:01:16.4]} 53... Qf7 {[%clk
0:00:08.9]} 54. Qd8+ {[%clk 0:01:15.3]} 54... Kh7 {[%clk 0:00:09.8]} 55. Bg5
{[%clk 0:01:15.5]} 55... Be4 {[%clk 0:00:09.9]} 56. Bf6 {[%clk 0:01:14.2]} 56...
Qb3+ {[%clk 0:00:10.9]} 57. Kf4 {[%clk 0:01:14]} 57... Qg8 {[%clk 0:00:09.4]}
58. Qe7+ {[%clk 0:01:13.8]} 58... Kh6 {[%clk 0:00:09.8]} 59. Bg5# {[%clk
0:01:15]} 1-0